[Event "Late-Titled-Tuesday-Blitz-April-30-2024"]
[Site "Chess.com"]
[Date "2024.04.30"]
[Round "6"]
[White "Rutricks"]
[Black "Krlence"]
[Result "1-0"]
[WhiteElo "2680"]
[BlackElo "2512"]
[TimeControl "180+1"]
[EndTime "15:06:40 PDT"]
[Termination "Rutricks won by resignation"]

1. Nf3 {[%clk 0:02:56.5]} 1... d5 {[%clk 0:03:00]} 2. b3 {[%clk 0:02:54]} 2...
Nf6 {[%clk 0:02:59.9]} 3. Bb2 {[%clk 0:02:54.6]} 3... Bf5 {[%clk 0:02:59.7]} 4.
c4 {[%clk 0:02:53.9]} 4... c6 {[%clk 0:03:00.1]} 5. h3 {[%clk 0:02:53]} 5... e6
{[%clk 0:02:59.2]} 6. e3 {[%clk 0:02:52.6]} 6... h6 {[%clk 0:02:59.4]} 7. Nc3
{[%clk 0:02:52.8]} 7... Nbd7 {[%clk 0:02:58.8]} 8. d4 {[%clk 0:02:52.5]} 8...
Be7 {[%clk 0:02:56.1]} 9. Bd3 {[%clk 0:02:52.6]} 9... Bxd3 {[%clk 0:02:55.8]}
10. Qxd3 {[%clk 0:02:53.5]} 10... O-O {[%clk 0:02:56.4]} 11. O-O {[%clk
0:02:54.4]} 11... a5 {[%clk 0:02:51.5]} 12. Rac1 {[%clk 0:02:50.4]} 12... Bb4
{[%clk 0:02:37.1]} 13. a3 {[%clk 0:02:43.8]} 13... Bxc3 {[%clk 0:02:37.2]} 14.
Bxc3 {[%clk 0:02:44.7]} 14... Ne4 {[%clk 0:02:37.4]} 15. Bb2 {[%clk 0:02:45]}
15... Qe7 {[%clk 0:02:27.8]} 16. Nh2 {[%clk 0:02:33.9]} 16... f5 {[%clk
0:02:21.4]} 17. f3 {[%clk 0:02:33.9]} 17... Nef6 {[%clk 0:02:17.4]} 18. Rfe1
{[%clk 0:02:31.1]} 18... a4 {[%clk 0:02:06.5]} 19. b4 {[%clk 0:02:31.1]} 19...
Nb6 {[%clk 0:02:06.8]} 20. c5 {[%clk 0:02:27.6]} 20... Nc4 {[%clk 0:02:06.7]}
21. Rc2 {[%clk 0:02:28.3]} 21... g5 {[%clk 0:02:01.4]} 22. Rxc4 {[%clk
0:02:17.8]} 22... dxc4 {[%clk 0:02:01.2]} 23. Qxc4 {[%clk 0:02:18.7]} 23... Nd5
{[%clk 0:01:54.1]} 24. e4 {[%clk 0:02:17.1]} 24... fxe4 {[%clk 0:01:54.3]} 25.
fxe4 {[%clk 0:02:18]} 25... Nf4 {[%clk 0:01:54.9]} 26. d5 {[%clk 0:02:07]} 26...
exd5 {[%clk 0:01:47.2]} 27. Qc3 {[%clk 0:02:04.2]} 27... Qh7 {[%clk 0:01:32.2]}
28. Ng4 {[%clk 0:02:02.2]} 28... Rae8 {[%clk 0:01:12.9]} 29. Nf6+ {[%clk
0:00:48]} 29... Rxf6 {[%clk 0:01:09.8]} 30. Qxf6 {[%clk 0:00:48.9]} 30... Qg6
{[%clk 0:00:56.1]} 31. Qh8+ {[%clk 0:00:42.4]} 31... Kf7 {[%clk 0:00:56.3]} 32.
Qd4 {[%clk 0:00:43.1]} 32... dxe4 {[%clk 0:00:44.8]} 33. g3 {[%clk 0:00:36.1]}
33... Nd3 {[%clk 0:00:26.4]} 34. Rf1+ {[%clk 0:00:32.7]} 34... Ke7 {[%clk
0:00:26.9]} 35. Rf6 {[%clk 0:00:31.1]} 35... Rd8 {[%clk 0:00:07.9]} 36. Rxg6
{[%clk 0:00:28]} 36... Rxd4 {[%clk 0:00:07.5]} 37. Bxd4 {[%clk 0:00:28.4]} 37...
Nc1 {[%clk 0:00:04.5]} 38. Kf2 {[%clk 0:00:26.5]} 38... Nb3 {[%clk 0:00:02.8]}
39. Be3 {[%clk 0:00:26.2]} 1-0

[Event "Late-Titled-Tuesday-Blitz-April-30-2024"]
[Site "Chess.com"]
[Date "2024.04.30"]
[Round "6"]
[White "pedroholly22"]
[Black "rhwr"]
[Result "1-0"]
[WhiteElo "2456"]
[BlackElo "2275"]
[TimeControl "180+1"]
[EndTime "15:06:41 PDT"]
[Termination "pedroholly22 won by resignation"]

1. e4 {[%clk 0:02:57.1]} 1... c5 {[%clk 0:02:58.9]} 2. Nf3 {[%clk 0:02:57]} 2...
d6 {[%clk 0:02:58.9]} 3. d4 {[%clk 0:02:57.2]} 3... cxd4 {[%clk 0:02:59.4]} 4.
Nxd4 {[%clk 0:02:58.1]} 4... Nf6 {[%clk 0:03:00]} 5. Nc3 {[%clk 0:02:58.7]} 5...
e5 {[%clk 0:03:00.6]} 6. Bb5+ {[%clk 0:02:57.6]} 6... Bd7 {[%clk 0:03:00.4]} 7.
Bxd7+ {[%clk 0:02:56.2]} 7... Qxd7 {[%clk 0:03:00.9]} 8. Nf5 {[%clk 0:02:56]}
8... d5 {[%clk 0:02:59.6]} 9. Bg5 {[%clk 0:02:50.5]} 9... Nxe4 {[%clk 0:02:52]}
10. Nxe4 {[%clk 0:02:44.3]} 10... dxe4 {[%clk 0:02:40]} 11. Ng3 {[%clk 0:02:34]}
11... Qxd1+ {[%clk 0:02:33.9]} 12. Rxd1 {[%clk 0:02:34.2]} 12... f6 {[%clk
0:02:34.5]} 13. Be3 {[%clk 0:02:33.9]} 13... Nc6 {[%clk 0:02:34.1]} 14. Nxe4
{[%clk 0:02:33.7]} 14... Rd8 {[%clk 0:02:30.1]} 15. Rxd8+ {[%clk 0:02:31.1]}
15... Kxd8 {[%clk 0:02:30.3]} 16. c3 {[%clk 0:02:31.2]} 16... Kc7 {[%clk
0:02:30.2]} 17. g4 {[%clk 0:02:28.7]} 17... Be7 {[%clk 0:02:29.9]} 18. Ke2
{[%clk 0:02:28.4]} 18... g6 {[%clk 0:02:28.6]} 19. Ng3 {[%clk 0:02:27.6]} 19...
Rf8 {[%clk 0:02:20.9]} 20. f3 {[%clk 0:02:16]} 20... f5 {[%clk 0:02:20]} 21. Bh6
{[%clk 0:02:16.1]} 21... Rf7 {[%clk 0:02:16.7]} 22. h4 {[%clk 0:02:14.8]} 22...
Bd6 {[%clk 0:02:02.8]} 23. Nf1 {[%clk 0:02:01.8]} 23... e4 {[%clk 0:01:38.5]}
24. gxf5 {[%clk 0:02:00.7]} 24... exf3+ {[%clk 0:01:36.8]} 25. Kxf3 {[%clk
0:02:01.1]} 25... Ne5+ {[%clk 0:01:33.6]} 26. Ke4 {[%clk 0:01:54.7]} 26... Rxf5
{[%clk 0:01:32.7]} 27. Ne3 {[%clk 0:01:54.4]} 27... Rf2 {[%clk 0:01:29.6]} 28.
Bf4 {[%clk 0:01:48.1]} 28... Nf7 {[%clk 0:00:57.9]} 29. Nd5+ {[%clk 0:01:44.6]}
29... Kc6 {[%clk 0:00:54.5]} 30. b4 {[%clk 0:01:34.8]} 30... Bxf4 {[%clk
0:00:47.8]} 31. Nxf4 {[%clk 0:01:35.7]} 31... Rxa2 {[%clk 0:00:47]} 32. h5
{[%clk 0:01:31.8]} 32... gxh5 {[%clk 0:00:41.9]} 33. Rxh5 {[%clk 0:01:31]} 33...
h6 {[%clk 0:00:27.8]} 34. Nd3 {[%clk 0:01:27.4]} 34... Re2+ {[%clk 0:00:25]} 35.
Kd4 {[%clk 0:01:24.9]} 35... Re6 {[%clk 0:00:23.4]} 36. b5+ {[%clk 0:01:15.6]}
36... Kc7 {[%clk 0:00:21.6]} 37. c4 {[%clk 0:01:14.7]} 37... Rg6 {[%clk
0:00:20.5]} 38. Nc5 {[%clk 0:01:13]} 38... Ng5 {[%clk 0:00:18.3]} 39. Kc3 {[%clk
0:01:10.2]} 39... a6 {[%clk 0:00:17.9]} 40. bxa6 {[%clk 0:01:09.2]} 40... bxa6
{[%clk 0:00:17.9]} 41. Nd3 {[%clk 0:01:08.8]} 41... Kb6 {[%clk 0:00:17.3]} 42.
Rh1 {[%clk 0:01:07]} 42... Re6 {[%clk 0:00:16.6]} 43. Rb1+ {[%clk 0:01:06.7]}
43... Kc7 {[%clk 0:00:15.9]} 44. Nc5 {[%clk 0:01:05.9]} 44... Rg6 {[%clk
0:00:14.7]} 45. Ra1 {[%clk 0:01:03.1]} 45... h5 {[%clk 0:00:12.8]} 46. Nxa6+
{[%clk 0:01:02]} 46... Kb6 {[%clk 0:00:13.2]} 47. Nb4 {[%clk 0:00:59.7]} 47...
Kb7 {[%clk 0:00:12.5]} 48. Nd5 {[%clk 0:00:59.3]} 48... Ne4+ {[%clk 0:00:10.6]}
49. Kd4 {[%clk 0:00:59.5]} 49... Ng3 {[%clk 0:00:09.3]} 50. Rb1+ {[%clk
0:00:59.3]} 50... Kc8 {[%clk 0:00:08.4]} 51. Ne7+ {[%clk 0:00:58.8]} 1-0

[Event "Late-Titled-Tuesday-Blitz-April-30-2024"]
[Site "Chess.com"]
[Date "2024.04.30"]
[Round "6"]
[White "disciplinedbrat"]
[Black "PawnEatingZombie"]
[Result "1-0"]
[WhiteElo "2436"]
[BlackElo "2216"]
[TimeControl "180+1"]
[EndTime "15:06:48 PDT"]
[Termination "disciplinedbrat won on time"]

1. e4 {[%clk 0:03:00.9]} 1... c5 {[%clk 0:02:56.6]} 2. Nf3 {[%clk 0:03:00.6]}
2... Nc6 {[%clk 0:02:54.8]} 3. d4 {[%clk 0:02:58.5]} 3... cxd4 {[%clk
0:02:54.5]} 4. Nxd4 {[%clk 0:02:59.4]} 4... e5 {[%clk 0:02:54.8]} 5. Nb5 {[%clk
0:02:59.3]} 5... d6 {[%clk 0:02:55.4]} 6. c4 {[%clk 0:02:55.8]} 6... Be6 {[%clk
0:02:53.7]} 7. N1c3 {[%clk 0:02:53.7]} 7... a6 {[%clk 0:02:53.7]} 8. Na3 {[%clk
0:02:53.8]} 8... Nf6 {[%clk 0:02:54.3]} 9. Be3 {[%clk 0:02:52.9]} 9... g6 {[%clk
0:02:53.8]} 10. Be2 {[%clk 0:02:51]} 10... Bg7 {[%clk 0:02:53.8]} 11. h4 {[%clk
0:02:50.6]} 11... h5 {[%clk 0:02:48.3]} 12. Bg5 {[%clk 0:02:43.1]} 12... Nd4
{[%clk 0:02:35.1]} 13. Nc2 {[%clk 0:02:29.2]} 13... Nxe2 {[%clk 0:02:25.5]} 14.
Qxe2 {[%clk 0:02:26.1]} 14... O-O {[%clk 0:02:19]} 15. Ne3 {[%clk 0:02:23.2]}
15... Qa5 {[%clk 0:02:14.6]} 16. O-O {[%clk 0:02:12.3]} 16... Rac8 {[%clk
0:02:02.6]} 17. Rac1 {[%clk 0:02:01.6]} 17... b5 {[%clk 0:01:46.5]} 18. cxb5
{[%clk 0:01:53.1]} 18... axb5 {[%clk 0:01:46.3]} 19. Bxf6 {[%clk 0:01:52.5]}
19... Bxf6 {[%clk 0:01:45.4]} 20. Nxb5 {[%clk 0:01:52.5]} 20... Rxc1 {[%clk
0:01:26.7]} 21. Rxc1 {[%clk 0:01:53.4]} 21... Qxa2 {[%clk 0:01:26.9]} 22. Nxd6
{[%clk 0:01:40.3]} 22... Bxh4 {[%clk 0:01:25]} 23. g3 {[%clk 0:01:33.6]} 23...
Be7 {[%clk 0:01:24.4]} 24. Ndf5 {[%clk 0:01:24]} 24... Bf6 {[%clk 0:01:15.2]}
25. Kg2 {[%clk 0:01:20.6]} 25... Rb8 {[%clk 0:01:12.2]} 26. Rc2 {[%clk
0:00:58.4]} 26... Bg5 {[%clk 0:01:10.2]} 27. Nd6 {[%clk 0:00:53.6]} 27... Bxe3
{[%clk 0:01:04.4]} 28. Qxe3 {[%clk 0:00:46]} 28... Rxb2 {[%clk 0:00:57.3]} 29.
Rc7 {[%clk 0:00:45.4]} 29... Re2 {[%clk 0:00:45.1]} 30. Qf3 {[%clk 0:00:44]}
30... Rc2 {[%clk 0:00:32.5]} 31. Re7 {[%clk 0:00:39.6]} 31... Kf8 {[%clk
0:00:19.9]} 32. Re8+ {[%clk 0:00:32.5]} 32... Kg7 {[%clk 0:00:20.2]} 33. Rb8
{[%clk 0:00:28.2]} 33... Bg4 {[%clk 0:00:14.5]} 34. Ne8+ {[%clk 0:00:26.5]}
34... Kh6 {[%clk 0:00:13]} 35. Qe3+ {[%clk 0:00:25.7]} 35... g5 {[%clk
0:00:06.9]} 36. Rb6+ {[%clk 0:00:21.6]} 36... Be6 {[%clk 0:00:06.3]} 37. Qf3
{[%clk 0:00:15.1]} 1-0

[Event "Late-Titled-Tuesday-Blitz-April-30-2024"]
[Site "Chess.com"]
[Date "2024.04.30"]
[Round "6"]
[White "Dr_Pepper18"]
[Black "KVAIDAN"]
[Result "0-1"]
[WhiteElo "2489"]
[BlackElo "2357"]
[TimeControl "180+1"]
[EndTime "15:06:50 PDT"]
[Termination "KVAIDAN won on time"]

1. Nf3 {[%clk 0:03:00.9]} 1... e6 {[%clk 0:00:01.5]} 2. c4 {[%clk 0:02:58.2]}
2... f5 {[%clk 0:00:01.9]} 3. b3 {[%clk 0:02:57.4]} 3... Nf6 {[%clk 0:00:02.6]}
4. Bb2 {[%clk 0:02:57.9]} 4... Be7 {[%clk 0:00:03.3]} 5. e3 {[%clk 0:02:57.9]}
5... O-O {[%clk 0:00:04.2]} 6. Be2 {[%clk 0:02:57]} 6... d6 {[%clk 0:00:05.1]}
7. O-O {[%clk 0:02:57.5]} 7... b6 {[%clk 0:00:06]} 8. d3 {[%clk 0:02:57.6]} 8...
Bb7 {[%clk 0:00:06.9]} 9. Nbd2 {[%clk 0:02:56.8]} 9... Qe8 {[%clk 0:00:07.5]}
10. Qc2 {[%clk 0:02:43.8]} 10... Nbd7 {[%clk 0:00:07.9]} 11. Rfd1 {[%clk
0:02:33.5]} 11... Qg6 {[%clk 0:00:08.1]} 12. Bf1 {[%clk 0:02:32.9]} 12... Ne5
{[%clk 0:00:08.4]} 13. Nxe5 {[%clk 0:02:25.6]} 13... dxe5 {[%clk 0:00:08.3]} 14.
Bxe5 {[%clk 0:02:25.8]} 14... Ng4 {[%clk 0:00:08.3]} 15. Bxc7 {[%clk 0:02:21.9]}
15... e5 {[%clk 0:00:08.1]} 16. d4 {[%clk 0:01:55.4]} 16... Rac8 {[%clk
0:00:08.3]} 17. Bxe5 {[%clk 0:01:51]} 17... Nxe5 {[%clk 0:00:08.2]} 18. dxe5
{[%clk 0:01:51.9]} 18... Bc5 {[%clk 0:00:08.6]} 19. a3 {[%clk 0:01:22.9]} 19...
a5 {[%clk 0:00:07.9]} 20. Qc3 {[%clk 0:00:45.6]} 20... f4 {[%clk 0:00:07.5]} 21.
b4 {[%clk 0:00:12]} 21... fxe3 {[%clk 0:00:06.3]} 22. fxe3 {[%clk 0:00:11.1]}
22... Rxf1+ {[%clk 0:00:06.1]} 23. Kxf1 {[%clk 0:00:07.1]} 23... Qxg2+ {[%clk
0:00:06.5]} 24. Ke1 {[%clk 0:00:08]} 24... Rf8 {[%clk 0:00:05.5]} 25. Rdc1
{[%clk 0:00:01.2]} 25... Qg1+ {[%clk 0:00:05.6]} 26. Ke2 {[%clk 0:00:01.1]}
26... Rf2+ {[%clk 0:00:04]} 27. Kd3 {[%clk 0:00:01.4]} 27... Qg6+ {[%clk
0:00:04.5]} 28. e4 {[%clk 0:00:00.6]} 28... Bxe4+ {[%clk 0:00:02.4]} 29. Nxe4
{[%clk 0:00:00.5]} 29... Rf3+ {[%clk 0:00:03]} 0-1

[Event "Late-Titled-Tuesday-Blitz-April-30-2024"]
[Site "Chess.com"]
[Date "2024.04.30"]
[Round "6"]
[White "Sergey_70"]
[Black "IngOscarArdila"]
[Result "1-0"]
[WhiteElo "2490"]
[BlackElo "2321"]
[TimeControl "180+1"]
[EndTime "15:06:53 PDT"]
[Termination "Sergey_70 won by checkmate"]

1. e4 {[%clk 0:02:57.9]} 1... e5 {[%clk 0:03:00.1]} 2. Nf3 {[%clk 0:02:57.2]}
2... Nf6 {[%clk 0:03:00.4]} 3. Nxe5 {[%clk 0:02:56.5]} 3... d6 {[%clk
0:03:00.6]} 4. Nf3 {[%clk 0:02:55.6]} 4... Nxe4 {[%clk 0:03:00.8]} 5. Nc3 {[%clk
0:02:55.8]} 5... Nxc3 {[%clk 0:03:00.9]} 6. dxc3 {[%clk 0:02:56.7]} 6... Be7
{[%clk 0:03:01.6]} 7. Bd3 {[%clk 0:02:54.1]} 7... O-O {[%clk 0:03:02.5]} 8. Bf4
{[%clk 0:02:52]} 8... Nd7 {[%clk 0:03:02.5]} 9. Qd2 {[%clk 0:02:29.3]} 9... Nf6
{[%clk 0:03:02.4]} 10. O-O-O {[%clk 0:02:26.9]} 10... c5 {[%clk 0:03:02.7]} 11.
h3 {[%clk 0:02:24.2]} 11... b5 {[%clk 0:03:02.2]} 12. c4 {[%clk 0:02:02.6]}
12... bxc4 {[%clk 0:02:59.3]} 13. Bxc4 {[%clk 0:02:03.5]} 13... Bb7 {[%clk
0:02:13.4]} 14. Bxd6 {[%clk 0:01:39.9]} 14... Ne4 {[%clk 0:01:21]} 15. Bxe7
{[%clk 0:01:38.8]} 15... Qxe7 {[%clk 0:01:10.4]} 16. Qd7 {[%clk 0:01:21.8]}
16... Qxd7 {[%clk 0:01:04.6]} 17. Rxd7 {[%clk 0:01:22.7]} 17... Bc6 {[%clk
0:01:05]} 18. Rc7 {[%clk 0:01:20.2]} 18... Rac8 {[%clk 0:00:49.5]} 19. Bxf7+
{[%clk 0:01:16.1]} 19... Kh8 {[%clk 0:00:47.8]} 20. Rxc8 {[%clk 0:01:15.4]}
20... Rxc8 {[%clk 0:00:47.9]} 21. Ne5 {[%clk 0:01:04.3]} 21... Bb5 {[%clk
0:00:21.7]} 22. Re1 {[%clk 0:00:47.6]} 22... Nd6 {[%clk 0:00:18.9]} 23. Bd5
{[%clk 0:00:40.4]} 23... g6 {[%clk 0:00:17.3]} 24. c4 {[%clk 0:00:35.1]} 24...
Be8 {[%clk 0:00:11.7]} 25. Ng4 {[%clk 0:00:29.5]} 25... Kg7 {[%clk 0:00:10.1]}
26. Re7+ {[%clk 0:00:29.2]} 26... Kf8 {[%clk 0:00:10.4]} 27. Rxh7 {[%clk
0:00:28.6]} 27... Nf5 {[%clk 0:00:09.7]} 28. Nf6 {[%clk 0:00:22.7]} 28... Ng7
{[%clk 0:00:09.7]} 29. Rh8+ {[%clk 0:00:18.9]} 29... Ke7 {[%clk 0:00:10.2]} 30.
Nxe8 {[%clk 0:00:18.8]} 30... Nxe8 {[%clk 0:00:11.1]} 31. Rh7+ {[%clk
0:00:18.4]} 31... Kf6 {[%clk 0:00:11.1]} 32. Rxa7 {[%clk 0:00:15]} 32... Ke5
{[%clk 0:00:11.4]} 33. g3 {[%clk 0:00:14.8]} 33... Kd4 {[%clk 0:00:11.6]} 34.
Kd2 {[%clk 0:00:14.5]} 34... Rd8 {[%clk 0:00:11.7]} 35. Re7 {[%clk 0:00:12.5]}
35... Nd6 {[%clk 0:00:11.4]} 36. f4 {[%clk 0:00:11.2]} 36... Rb8 {[%clk
0:00:11.2]} 37. b3 {[%clk 0:00:11.1]} 37... Rh8 {[%clk 0:00:10.2]} 38. h4 {[%clk
0:00:11]} 38... Nf5 {[%clk 0:00:08.4]} 39. Re4# {[%clk 0:00:10]} 1-0

[Event "Late-Titled-Tuesday-Blitz-April-30-2024"]
[Site "Chess.com"]
[Date "2024.04.30"]
[Round "6"]
[White "Mikhail_Golubev"]
[Black "Vincefm"]
[Result "0-1"]
[WhiteElo "2609"]
[BlackElo "2441"]
[TimeControl "180+1"]
[EndTime "15:06:54 PDT"]
[Termination "Vincefm won on time"]

1. e4 {[%clk 0:02:54.5]} 1... c5 {[%clk 0:03:00.3]} 2. Nf3 {[%clk 0:02:54.1]}
2... e6 {[%clk 0:03:00]} 3. d4 {[%clk 0:02:54.1]} 3... cxd4 {[%clk 0:03:00.4]}
4. Nxd4 {[%clk 0:02:54.7]} 4... Nc6 {[%clk 0:03:00.2]} 5. Nc3 {[%clk 0:02:54.5]}
5... Qc7 {[%clk 0:02:59.2]} 6. Be3 {[%clk 0:02:54.3]} 6... a6 {[%clk 0:02:58.6]}
7. a3 {[%clk 0:02:54.3]} 7... Nf6 {[%clk 0:02:54]} 8. f4 {[%clk 0:02:50]} 8...
d6 {[%clk 0:02:51]} 9. Qf3 {[%clk 0:02:48.2]} 9... Be7 {[%clk 0:02:48.6]} 10.
O-O-O {[%clk 0:02:43.7]} 10... O-O {[%clk 0:02:47.6]} 11. Rg1 {[%clk 0:02:34.3]}
11... Nxd4 {[%clk 0:02:39.1]} 12. Bxd4 {[%clk 0:01:49.5]} 12... e5 {[%clk
0:02:35.8]} 13. fxe5 {[%clk 0:01:49.7]} 13... dxe5 {[%clk 0:02:34.9]} 14. Qg3
{[%clk 0:01:47.9]} 14... Bd6 {[%clk 0:02:05]} 15. Be3 {[%clk 0:01:47.8]} 15...
Bxa3 {[%clk 0:01:28.1]} 16. Nd5 {[%clk 0:00:47.9]} 16... Nxd5 {[%clk 0:01:21.4]}
17. Rxd5 {[%clk 0:00:40.7]} 17... Be7 {[%clk 0:01:09.7]} 18. Bd3 {[%clk
0:00:29.9]} 18... Be6 {[%clk 0:01:06.1]} 19. Qxe5 {[%clk 0:00:23]} 19... Qc6
{[%clk 0:00:44.4]} 20. Bd4 {[%clk 0:00:10.4]} 20... Bf6 {[%clk 0:00:42.1]} 21.
Qh5 {[%clk 0:00:06.3]} 21... g6 {[%clk 0:00:32.2]} 22. Bxf6 {[%clk 0:00:06]}
22... Bxd5 {[%clk 0:00:26.9]} 23. Qh4 {[%clk 0:00:05]} 23... Bb3 {[%clk
0:00:19.6]} 24. e5 {[%clk 0:00:02.9]} 24... Bxc2 {[%clk 0:00:16.4]} 25. Bxc2
{[%clk 0:00:03.1]} 25... Rac8 {[%clk 0:00:15.6]} 26. Qf2 {[%clk 0:00:03.2]}
26... Qe4 {[%clk 0:00:11.9]} 27. Kb1 {[%clk 0:00:02.7]} 27... Qc4 {[%clk
0:00:09.1]} 28. Re1 {[%clk 0:00:01.8]} 28... Rfe8 {[%clk 0:00:06.5]} 29. Qe2
{[%clk 0:00:01.9]} 29... Qc5 {[%clk 0:00:04.5]} 30. Be4 {[%clk 0:00:01.5]} 30...
b5 {[%clk 0:00:03.2]} 31. Qe3 {[%clk 0:00:01.1]} 31... Qxe3 {[%clk 0:00:02.4]}
32. Bf3 {[%clk 0:00:01.7]} 32... Qxe1+ {[%clk 0:00:01.8]} 0-1

[Event "Late-Titled-Tuesday-Blitz-April-30-2024"]
[Site "Chess.com"]
[Date "2024.04.30"]
[Round "6"]
[White "WildTricks"]
[Black "VD_coach"]
[Result "1-0"]
[WhiteElo "2701"]
[BlackElo "2536"]
[TimeControl "180+1"]
[EndTime "15:06:56 PDT"]
[Termination "WildTricks won on time"]

1. Nf3 {[%clk 0:03:00.9]} 1... Nf6 {[%clk 0:02:59.5]} 2. g3 {[%clk 0:03:00.8]}
2... g6 {[%clk 0:02:59.9]} 3. b3 {[%clk 0:03:00.1]} 3... Bg7 {[%clk 0:03:00.2]}
4. Bb2 {[%clk 0:03:00.4]} 4... O-O {[%clk 0:03:00.9]} 5. Bg2 {[%clk 0:03:00.3]}
5... d6 {[%clk 0:03:01.2]} 6. d4 {[%clk 0:03:00.2]} 6... Nbd7 {[%clk 0:02:59]}
7. O-O {[%clk 0:02:58.4]} 7... e5 {[%clk 0:02:59.2]} 8. dxe5 {[%clk 0:02:55.8]}
8... Ng4 {[%clk 0:02:59.3]} 9. c4 {[%clk 0:02:55.4]} 9... Ndxe5 {[%clk
0:02:58.4]} 10. Nc3 {[%clk 0:02:55]} 10... Re8 {[%clk 0:02:55.2]} 11. Qd2 {[%clk
0:02:53.9]} 11... Bh6 {[%clk 0:02:49.3]} 12. Qc2 {[%clk 0:02:43.2]} 12... Bf5
{[%clk 0:02:36.4]} 13. e4 {[%clk 0:02:41.4]} 13... Bd7 {[%clk 0:02:26.1]} 14.
Rad1 {[%clk 0:02:28]} 14... Nxf3+ {[%clk 0:01:39.3]} 15. Bxf3 {[%clk 0:02:28.9]}
15... Bg7 {[%clk 0:01:38.5]} 16. Nd5 {[%clk 0:02:21.7]} 16... Ne5 {[%clk
0:01:34.9]} 17. Bg2 {[%clk 0:02:19.7]} 17... c6 {[%clk 0:01:30.7]} 18. Ne3
{[%clk 0:02:15.7]} 18... Qe7 {[%clk 0:01:04.3]} 19. Qd2 {[%clk 0:02:10.3]} 19...
Ng4 {[%clk 0:01:00.8]} 20. Bxg7 {[%clk 0:02:00.4]} 20... Kxg7 {[%clk 0:00:59.5]}
21. Nxg4 {[%clk 0:01:55.9]} 21... Bxg4 {[%clk 0:00:59.3]} 22. f3 {[%clk
0:01:55.2]} 22... Be6 {[%clk 0:00:58.7]} 23. Qxd6 {[%clk 0:01:53.9]} 23... Qxd6
{[%clk 0:00:53.7]} 24. Rxd6 {[%clk 0:01:54.8]} 24... Red8 {[%clk 0:00:50.5]} 25.
Rfd1 {[%clk 0:01:52.8]} 25... Rxd6 {[%clk 0:00:50.4]} 26. Rxd6 {[%clk
0:01:53.7]} 26... a5 {[%clk 0:00:51]} 27. a4 {[%clk 0:01:39.7]} 27... b5 {[%clk
0:00:32.6]} 28. axb5 {[%clk 0:01:31]} 28... cxb5 {[%clk 0:00:33.5]} 29. cxb5
{[%clk 0:01:31.4]} 29... Bxb3 {[%clk 0:00:32.8]} 30. Ra6 {[%clk 0:01:28.9]}
30... Rc8 {[%clk 0:00:12.9]} 31. Bf1 {[%clk 0:01:06.7]} 31... a4 {[%clk
0:00:10]} 32. b6 {[%clk 0:01:05.3]} 32... Rc1 {[%clk 0:00:06.1]} 33. b7 {[%clk
0:00:59.9]} 33... Bc4 {[%clk 0:00:06.4]} 34. b8=Q {[%clk 0:00:41.5]} 34... Rxf1+
{[%clk 0:00:06]} 35. Kg2 {[%clk 0:00:39.7]} 35... Bxa6 {[%clk 0:00:06.9]} 36.
Qe5+ {[%clk 0:00:39.6]} 36... Kg8 {[%clk 0:00:06.5]} 37. Qe8+ {[%clk 0:00:38.6]}
37... Kg7 {[%clk 0:00:06.7]} 38. Qxa4 {[%clk 0:00:37.7]} 38... Be2 {[%clk
0:00:04.3]} 39. Qd4+ {[%clk 0:00:36.9]} 39... Kg8 {[%clk 0:00:04.4]} 40. Qd8+
{[%clk 0:00:36.1]} 40... Kg7 {[%clk 0:00:04.7]} 41. Qd2 {[%clk 0:00:35.1]} 41...
Ba6 {[%clk 0:00:01]} 42. Qa2 {[%clk 0:00:30.4]} 1-0

[Event "Late-Titled-Tuesday-Blitz-April-30-2024"]
[Site "Chess.com"]
[Date "2024.04.30"]
[Round "6"]
[White "ImportedItalianMaple"]
[Black "Russian_berezka"]
[Result "1-0"]
[WhiteElo "2465"]
[BlackElo "2614"]
[TimeControl "180+1"]
[EndTime "15:06:59 PDT"]
[Termination "ImportedItalianMaple won by checkmate"]

1. d4 {[%clk 0:02:57.5]} 1... Nf6 {[%clk 0:02:59]} 2. c4 {[%clk 0:02:58]} 2...
e6 {[%clk 0:02:59.2]} 3. g3 {[%clk 0:02:58.4]} 3... d5 {[%clk 0:02:59]} 4. Bg2
{[%clk 0:02:58.9]} 4... Bb4+ {[%clk 0:02:59.6]} 5. Nd2 {[%clk 0:02:58.8]} 5...
h6 {[%clk 0:02:50.2]} 6. Nf3 {[%clk 0:02:58.5]} 6... O-O {[%clk 0:02:50]} 7. O-O
{[%clk 0:02:58.3]} 7... b6 {[%clk 0:02:31.9]} 8. cxd5 {[%clk 0:02:56.3]} 8...
exd5 {[%clk 0:02:31.8]} 9. a3 {[%clk 0:02:56.4]} 9... Bd6 {[%clk 0:02:19.8]} 10.
b4 {[%clk 0:02:44.7]} 10... c6 {[%clk 0:02:09.3]} 11. Bb2 {[%clk 0:02:43]} 11...
a5 {[%clk 0:01:59.8]} 12. bxa5 {[%clk 0:02:34.7]} 12... Rxa5 {[%clk 0:01:55.8]}
13. Ne5 {[%clk 0:02:34.5]} 13... c5 {[%clk 0:01:40.1]} 14. e4 {[%clk 0:02:12.5]}
14... cxd4 {[%clk 0:01:25.6]} 15. Bxd4 {[%clk 0:02:11.1]} 15... dxe4 {[%clk
0:01:22.8]} 16. Nec4 {[%clk 0:02:11]} 16... Rd5 {[%clk 0:01:22.6]} 17. Bxf6
{[%clk 0:02:06.7]} 17... Qxf6 {[%clk 0:01:10.5]} 18. Nxe4 {[%clk 0:02:03.4]}
18... Rxd1 {[%clk 0:00:49.3]} 19. Nxf6+ {[%clk 0:02:03.1]} 19... gxf6 {[%clk
0:00:50.2]} 20. Rfxd1 {[%clk 0:02:01.6]} 20... Bc5 {[%clk 0:00:49.9]} 21. Bf3
{[%clk 0:01:52.3]} 21... Be6 {[%clk 0:00:44.8]} 22. Nd6 {[%clk 0:01:49.3]} 22...
f5 {[%clk 0:00:30.1]} 23. Kg2 {[%clk 0:01:45.2]} 23... Nd7 {[%clk 0:00:28.7]}
24. Bd5 {[%clk 0:01:18]} 24... Nf6 {[%clk 0:00:22.7]} 25. Bxe6 {[%clk
0:01:11.5]} 25... fxe6 {[%clk 0:00:23.6]} 26. Nc4 {[%clk 0:01:03.1]} 26... Ne4
{[%clk 0:00:21.5]} 27. f3 {[%clk 0:00:51.9]} 27... Nc3 {[%clk 0:00:22]} 28. Rd3
{[%clk 0:00:48.5]} 28... Nd5 {[%clk 0:00:21.5]} 29. a4 {[%clk 0:00:44.7]} 29...
Rd8 {[%clk 0:00:20.7]} 30. Rad1 {[%clk 0:00:42.3]} 30... Kf7 {[%clk 0:00:16.5]}
31. a5 {[%clk 0:00:38.3]} 31... bxa5 {[%clk 0:00:16.1]} 32. Nxa5 {[%clk
0:00:38.5]} 32... Ne3+ {[%clk 0:00:16.7]} 33. Kh3 {[%clk 0:00:32]} 33... Ra8
{[%clk 0:00:17.3]} 34. Rd7+ {[%clk 0:00:28.9]} 34... Kf6 {[%clk 0:00:14.7]} 35.
Ra1 {[%clk 0:00:20.8]} 35... Bb6 {[%clk 0:00:05.6]} 36. Nb3 {[%clk 0:00:21.1]}
36... Rb8 {[%clk 0:00:05.5]} 37. Ra6 {[%clk 0:00:21.4]} 37... Bd8 {[%clk
0:00:04.9]} 38. Nc5 {[%clk 0:00:18.7]} 38... Kg5 {[%clk 0:00:01.1]} 39. Rxe6
{[%clk 0:00:18.6]} 39... Nc4 {[%clk 0:00:00.4]} 40. Rg7+ {[%clk 0:00:17.1]}
40... Kh5 {[%clk 0:00:00.5]} 41. Nd3 {[%clk 0:00:15.3]} 41... Nd2 {[%clk
0:00:00.2]} 42. Nf4# {[%clk 0:00:15.5]} 1-0